[Event "Memorial Ukrainian Chess Warriors 2024"]
[Site "Lviv"]
[Date "2024.03.15"]
[Round "7.9"]
[White "Petursson, Margeir"]
[Black "Andrienko, Artem"]
[Result "1/2-1/2"]
[ECO "E20"]
[WhiteElo "2344"]
[BlackElo "2041"]
[Annotator "TA"]
[PlyCount "101"]
[EventDate "2024.03.06"]
[EventType "swiss"]
[EventCountry "UKR"]
[SourceTitle "playchess.com"]
[Source "ChessBase"]
[SourceQuality "1"]
[TimeControl "600+5"]

{[%evp 18,101,2,12,13,-18,67,66,45,57,56,39,61,14,16,21,34,0,1,-5,0,-8,0,-4,29,32,16,0,74,24,66,-21,-19,-30,-27,-29,76,0,0,-167,-150,-141,-179,-403,-54,-400,-83,-230,25,24,15,8,11,0,0,0,5306,0,0,0,0,0,0,0,0,0,0,0,0,0,0,0,0,0,0,0,0,0,0,0,0,0,0,0,0,0]} 1. d4 {[%emt 0:00:01]} Nf6 {[%emt 0:00:02]} 2. c4 {[%emt 0:00:01]} e6 {[%emt 0:00:01]} 3. Nc3 {[%emt 0:00:04]} Bb4 {[%emt 0:00:02]} 4. f3 {[%emt 0:00:02]} c5 {[%emt 0:00:05]} 5. d5 {[%emt 0:00:02]} b5 {[%emt 0:00:06]} 6. e4 {[%emt 0:00:02] E20: Nimzo-Indian: 4 g3 and 4 f3.} O-O {[%emt 0:00:17]} 7. e5 Ne8 {[%emt 0:01:42]} 8. f4 {[%emt 0:00:05]} d6 {[%emt 0:00:19]} 9. Nf3 {[%emt 0:00:03]} exd5 {[%emt 0:01:19]} 10. cxd5 {[%emt 0:00:01]} Nc7 {[%emt 0:00:06]} 11. Be2 {[%emt 0:00:27]} dxe5 $146 {[%emt 0:00:58]} ({Black should play} 11... c4 $11) ({Predecessor:} 11... Bb7 12. O-O c4 13. a4 a6 14. Kh1 Bxc3 15. bxc3 Nxd5 16. Qc2 h6 17. Rb1 Nd7 18. axb5 axb5 19. Rxb5 {½-½ Sabaev,S (2464)-Gonzalez Freixas,A (2530) W-ch27 q04 email 2007}) 12. d6 $14 {[%emt 0:00:07]} Ne6 {[%emt 0:00:36]} 13. fxe5 {[%emt 0:00:03]} (13. Bxb5 e4 (13... Nxf4 14. O-O $14) (13... Bxc3+ 14. bxc3 exf4 15. O-O $11) (13... Nd4 14. Bd3 $11) 14. Ne5 Qa5 $15 (14... Nd4 15. Bc4 $11)) 13... c4 {[%emt 0:02:26]} 14. O-O {[%emt 0:00:10]} Bb7 {[%emt 0:00:14]} 15. Kh1 {[%emt 0:00:41]} (15. Nxb5 $2 Qb6+ 16. Nfd4 Nc6 $19) (15. Be3 $14) 15... Bxc3 $11 {[%emt 0:00:35]} 16. bxc3 {[%emt 0:00:03]} Nd7 {[%emt 0:00:03]} 17. Rb1 {[%emt 0:00:54]} a6 {[%emt 0:00:16]} 18. a4 {[%emt 0:00:30]} Rb8 {[%emt 0:00:01]} 19. Qe1 {[%emt 0:01:19]} Be4 {[%emt 0:00:19]} 20. Rb2 Ndc5 {[%emt 0:00:12]} 21. axb5 {[%emt 0:00:54]} axb5 {[%emt 0:00:03]} 22. Qg3 {[%emt 0:00:24]} Na4 {[%emt 0:00:54]} (22... Qa5 $11) 23. Ng5 $1 $16 {[%emt 0:00:08]} Bg6 {[%emt 0:00:02]} 24. Ra2 {[%emt 0:00:33]} (24. Nxe6 $1 $14 fxe6 25. Ra2) 24... Nxc3 $1 $11 {[%emt 0:01:06]} 25. Qxc3 {[%emt 0:01:54]} Nxg5 {[%emt 0:00:01]} 26. Ra7 {[%emt 0:00:38]} Ne4 {[%emt 0:00:11]} (26... Ne6 $11) 27. Qe3 {[%emt 0:00:29]} ({White should try} 27. Qd4 $16) 27... c3 {[%emt 0:00:12]} 28. Re7 $2 {[%emt 0:00:15]} (28. Bf3 $11 {and White stays safe.} Qh4 29. Bxe4 Qxe4 30. Qxc3) 28... b4 $19 {[%emt 0:00:07]} 29. Bd3 {[%emt 0:00:19]} Qb6 $1 {[%emt 0:00:06]} 30. Qf3 $2 {[%emt 0:00:32]} (30. Qxb6 Rxb6 31. d7) 30... Qc6 $2 {[%emt 0:00:05]} (30... Qd4 $19 31. Bxe4 Qxe4 (31... Bxe4 $2 32. Rd1 $19)) 31. h4 $2 {[%emt 0:00:08][%mdl 8192]} (31. Re1 $15 b3 (31... Nf2+ 32. Qxf2 Bxd3 33. e6 $15) 32. Rc7 (32. Bxe4 $2 Bxe4 33. Qxe4 Qxe4 $19)) 31... h5 $2 {[%emt 0:00:01]} (31... b3 $19 {has better winning chances.} 32. Kh2 b2) 32. Re1 $17 {[%emt 0:00:18] [#]} Nf2+ $2 {[%emt 0:00:03]} ({Better is} 32... b3 $1 $19 {[%cal Rb3b2][%mdl 512]} 33. Rc7 (33. Bxe4 $2 {too greedy.} Bxe4 34. Qxe4 Qxe4 $19) 33... Qa4 34. Rxe4 (34. Bxe4 $2 b2 $19) 34... Bxe4 35. Qxe4 Qxe4 36. Bxe4 Rb4) 33. Qxf2 $11 {[%emt 0:00:11]} Bxd3 {[%emt 0:00:02]} 34. Qg3 {[%emt 0:00:06]} Bf5 {[%emt 0:00:09]} 35. Bh6 {[%emt 0:00:11]} Bg6 {[%emt 0:00:09]} 36. e6 {[%emt 0:00:05]} gxh6 $2 {[%emt 0:00:06][%mdl 8192] [#]} (36... Kh7 $11 37. Rc7 Qd5 38. Bxg7 Kxg7) 37. Rxf7 $2 {[%emt 0:00:51]} ({Not} 37. Rc7 Qd5 38. d7 (38. e7 Rbd8 $15) 38... Kh7 $11 (38... Rbd8 39. Kh2 $11)) ({Only move:} 37. exf7+ $1 $18 Kh7 38. R1e6) 37... Rxf7 $11 {[%emt 0:00:06]} 38. exf7+ {[%emt 0:00:07]} Kh7 $1 {[%emt 0:00:02]} 39. Re7 {[%emt 0:00:30]} Rf8 {[%emt 0:00:02]} 40. Re6 $1 {[%emt 0:00:03]} Bf5 {[%emt 0:00:07]} 41. Rxh6+ $1 {[%emt 0:00:06]} Kxh6 {[%emt 0:00:03]} 42. Qg5+ {[%emt 0:00:01]} Kh7 {[%emt 0:00:02]} 43. Qxf5+ {[%emt 0:00:03]} Kg7 {[%emt 0:00:01]} 44. Qe5+ {[%emt 0:00:05]} Kxf7 {[%emt 0:00:02]} 45. Qe7+ {[%emt 0:00:01]} Kg8 {[%emt 0:00:09]} 46. Qg5+ {[%emt 0:00:01]} Kh7 {[%emt 0:00:04]} 47. Qxh5+ {[%emt 0:00:03]} Kg7 {[%emt 0:00:04]} 48. Qg5+ $1 {[%emt 0:00:01]} Kf7 {[%emt 0:00:01]} 49. Qe7+ {[%emt 0:00:01]} Kg6 {[%emt 0:00:18]} 50. Qg5+ {[%emt 0:00:02]} Kf7 {[%emt 0:00:04]} 51. Qe7+ {[%emt 0:00:03]} 1/2-1/2

[Event "Memorial Ukrainian Chess Warriors 2024"]
[Site "Lviv"]
[Date "2024.03.15"]
[Round "7.10"]
[White "Lornye, Pylyp"]
[Black "Trushko, Andrii"]
[Result "1/2-1/2"]
[ECO "A06"]
[WhiteElo "2147"]
[BlackElo "2050"]
[Annotator "RC"]
[PlyCount "83"]
[EventDate "2024.03.06"]
[EventType "swiss"]
[EventCountry "UKR"]
[SourceTitle "playchess.com"]
[Source "ChessBase"]
[SourceQuality "1"]
[TimeControl "600+5"]

1. Nf3 {[%emt 0:00:02]} d5 {[%emt 0:00:01]} 2. g3 {[%emt 0:00:01]} Nf6 {[%emt 0:00:01]} 3. Bg2 {[%emt 0:00:02]} c6 {[%emt 0:00:01]} 4. O-O {[%emt 0:00:03]} Bf5 {[%emt 0:00:03]} 5. d3 {[%emt 0:00:06]} e6 {[%emt 0:00:02]} 6. Nc3 {[%emt 0:01:03]} Be7 {[%emt 0:00:07]} 7. Qe1 {[%emt 0:00:28]} O-O {[%emt 0:00:14]} 8. e4 {[%emt 0:00:03]} dxe4 {[%emt 0:00:02]} 9. dxe4 {[%emt 0:00:01]} Bg6 {[%emt 0:00:06]} 10. Ne5 {[%emt 0:00:36]} Nbd7 {[%emt 0:00:17]} 11. Nxg6 {[%emt 0:00:17]} hxg6 {[%emt 0:00:01]} 12. f4 {[%emt 0:00:12]} Qb6+ {[%emt 0:00:14]} 13. Kh1 {[%emt 0:00:18]} Bb4 {[%emt 0:00:46]} 14. Be3 {[%emt 0:00:48]} Qa5 {[%emt 0:00:08]} 15. Bd2 {[%emt 0:00:15]} Rfd8 {[%emt 0:00:48]} 16. a3 {[%emt 0:00:14]} Bf8 {[%emt 0:00:12]} 17. e5 {[%emt 0:00:32]} Ne8 {[%emt 0:00:16]} 18. g4 {[%emt 0:00:43]} Nb6 {[%emt 0:00:47]} 19. Ne4 {[%emt 0:00:41]} Qb5 {[%emt 0:00:17]} 20. b3 {[%emt 0:00:11]} Be7 {[%emt 0:01:22]} 21. a4 {[%emt 0:00:07]} Qa6 {[%emt 0:00:09]} 22. Rf3 {[%emt 0:00:02]} Nd5 {[%emt 0:01:26]} 23. Bf1 {[%emt 0:00:06]} Qb6 {[%emt 0:00:04]} 24. Ba5 {[%emt 0:01:24]} Qd4 {[%emt 0:00:07]} 25. c3 {[%emt 0:00:08]} Nxc3 {[%emt 0:00:11]} 26. Bxc3 {[%emt 0:00:02]} Qd7 {[%emt 0:00:20]} 27. g5 {[%emt 0:00:13]} f5 {[%emt 0:02:36]} 28. gxf6 {[%emt 0:00:05]} Bf8 {[%emt 0:00:05]} 29. Qh4 {[%emt 0:00:18]} gxf6 {[%emt 0:00:01]} 30. exf6 {[%emt 0:00:09]} Qd5 {[%emt 0:00:11]} 31. Ng5 {[%emt 0:00:08]} Rd7 {[%emt 0:00:08]} 32. Bc4 {[%emt 0:00:02]} Qxf3+ {[%emt 0:00:42]} 33. Nxf3 {[%emt 0:00:02]} Nc7 {[%emt 0:00:01]} 34. Ng5 {[%emt 0:00:04]} Re8 {[%emt 0:00:07]} 35. f7+ {[%emt 0:00:03]} Rxf7 {[%emt 0:00:01]} 36. Nxf7 {[%emt 0:00:02]} Re7 {[%emt 0:00:05]} 37. Ng5 {[%emt 0:00:11]} Bg7 {[%emt 0:00:04]} 38. Bxg7 {[%emt 0:00:04]} Kxg7 {[%emt 0:00:03]} 39. Qh7+ {[%emt 0:00:06]} Kf6 {[%emt 0:00:01]} 40. Qh8+ {[%emt 0:00:01]} Kf5 {[%emt 0:00:01]} 41. Qf8+ {[%emt 0:00:03]} Kg4 {[%emt 0:00:01]} 42. Qxe7 {[%emt 0:00:02]} 1/2-1/2

[Event "Memorial Ukrainian Chess Warriors 2024"]
[Site "Lviv"]
[Date "2024.03.15"]
[Round "7.11"]
[White "Nedilko, Vasily"]
[Black "Shton, Roman"]
[Result "1-0"]
[ECO "E04"]
[WhiteElo "2324"]
[BlackElo "2002"]
[Annotator "TA"]
[PlyCount "85"]
[EventDate "2024.03.06"]
[EventType "swiss"]
[EventCountry "UKR"]
[SourceTitle "playchess.com"]
[Source "ChessBase"]
[SourceQuality "1"]
[TimeControl "600+5"]

{[%evp 12,84,27,22,66,49,52,-25,-4,-105,-21,-7,-3,-14,110,110,280,148,175,129,320,-86,533,520,29991,239,858,841,29987,391,381,380,430,352,423,270,427,415,536,536,891,439,449,439,29995,1189,1131,1059,1387,1378,1210,1158,29991,490,29993,29994,29997,29998,29998,29986,6016,1961,2436,2219,29987,9762,29975,29980,29989,29990,29997,29998,29998,29999,29999]} 1. d4 {[%emt 0:00:02]} Nf6 {[%emt 0:00:01]} 2. c4 {[%emt 0:00:01]} e6 {[%emt 0:00:01]} 3. Nf3 {[%emt 0:00:01]} d5 {[%emt 0:00:01]} 4. g3 {[%emt 0:00:01]} dxc4 {[%emt 0:00:09]} 5. Bg2 {[%emt 0:00:10]} c6 {[%emt 0:00:01]} 6. O-O {[%emt 0:00:17]} Nbd7 {[%emt 0:00:30]} 7. a4 {[%emt 0:00:23]} Nd5 {[%emt 0:00:39]} 8. Na3 {[%emt 0:02:24]} Bxa3 {[%emt 0:00:24]} 9. bxa3 {[%emt 0:00:02]} (9. Rxa3 $14 O-O 10. e4) 9... b5 $11 {[%emt 0:00:13] Schwarz hat minimalen Vorteil.} 10. e4 {[%emt 0:00:57]} (10. Bg5 $11 {hält das Gleichgewicht.} Qb6 11. Bd2 (11. e4 Nc3 $17)) 10... N5b6 {[%emt 0:00:22]} (10... Nc3 $17 11. Qc2 Nxa4) 11. a5 {[%emt 0:02:14]} Na4 {[%emt 0:00:02][%cal Oc8b7]} 12. e5 {[%emt 0:00:04]} Qxa5 {[%emt 0:00:10]} (12... Nc3 $11 {bleibt in der Remisbreite.} 13. Qd2 Nd5) 13. Ng5 $16 {[%emt 0:00:18][%cal Bf3g5,Bg5e4,Be4d6][%mdl 32]} O-O $2 {[%emt 0:04:59]} (13... Qc7 $16) 14. Qh5 {[%emt 0:00:53]} ({Weiss braucht} 14. Bxc6 $18 Rb8 15. Bxd7) 14... h6 {[%emt 0:00:03]} 15. Bxc6 $40 {[%emt 0:01:52][%mdl 128] Weiss will per K.O. gewinnen.} (15. Ne4 $18 Qd8 16. Re1) 15... Rb8 $2 {[%emt 0:00:01]} (15... hxg5 $16 {war einen Versuch wert.} 16. Bxa8 Qb6) 16. Bxd7 $2 {[%emt 0:00:01]} (16. Ne4 $18 Qd8 (16... Qc7 $2 17. Bxd7 f5 18. exf6 $18) 17. Bxd7 (17. Bxh6 gxh6 18. Qxh6 f5 $11)) 16... Bxd7 $4 {[%emt 0:00:00][%mdl 8192]} (16... hxg5 $17 17. Bc6 Bb7 18. Bxb7 Rxb7) 17. Ne4 $18 {[%emt 0:00:01]} Nc3 {[%emt 0:03:41]} (17... f5 $18) 18. Bd2 $2 {[%emt 0:00:16]} (18. Nf6+ gxf6 19. Bxh6 Ne4 20. exf6 b4 21. Qxa5 Rb5 22. Qxa7 (22. Qc7 Rfb8 $18) 22... Bc6 23. Qc7 (23. Bxf8 Nd2 $18)) 18... Ne2+ $2 {[%emt 0:00:11] Schwarz hat schwache schwarze Felder} (18... b4 19. axb4 Nxe4 20. Rxa5 Nxd2) 19. Qxe2 {[%emt 0:00:02]} Qb6 {[%emt 0:00:04]} 20. Bb4 $2 {[%emt 0:00:12]} (20. Nf6+ {setzt Matt} gxf6 21. Bxh6 f5 22. Qh5 Qd8 23. Bg5 f6 24. Qg6+ (24. exf6 Qe8 $16) (24. Bxf6 Rxf6 25. exf6 Qxf6 $18) 24... Kh8 25. exf6 (25. Bxf6+ Rxf6 26. exf6 Qg8 $18)) 20... Rfe8 {[%emt 0:00:05]} 21. Bc5 {[%emt 0:00:03]} Qc6 {[%emt 0:00:02]} 22. Nd6 {[%emt 0:00:22]} Red8 {[%emt 0:00:03]} 23. Qe4 {[%emt 0:00:05]} Qa6 {[%emt 0:00:05]} (23... Qxe4 $142 24. Nxe4 Bc6) 24. Qf4 {[%emt 0:00:11]} Rf8 {[%emt 0:00:02]} 25. Ne4 {[%emt 0:00:21]} Rfc8 {[%emt 0:00:08]} 26. Rfe1 {[%emt 0:00:27]} (26. Nf6+ $142 Kh8 27. Nxd7) 26... Bc6 {[%emt 0:00:01]} 27. Nf6+ {[%emt 0:00:11]} (27. Nd6 Rc7 28. Rec1 Bd5 $18) 27... gxf6 {[%emt 0:00:03]} (27... Kh8 $18 28. g4 Ba8) 28. exf6 {[%emt 0:00:01]} (28. Qxh6 $142 fxe5 29. Be7 (29. Rxe5 Be4 30. Rh5 f6 31. Qxf6 Bh7 32. Rg5+ Bg6 33. Rxg6+ Kh7 34. Qg7#) 29... Qa5 30. Bf6 (30. dxe5 Qd2 $18) 30... Qxe1+ 31. Rxe1 exd4 32. Qh8#) 28... Kh7 {[%emt 0:00:05]} 29. Re5 {[%emt 0:00:11] [#] Droht Matt per Rh5.} Rg8 {[%emt 0:00:04][%cal Bc8g8,Bg8g6,Bg6f6,Bf6f7][%mdl 32]} 30. Rh5 {[%emt 0:00:01]} Rg6 {[%emt 0:00:01]} 31. Qxb8 {[%emt 0:00:04] Weiss will mit Qf8 Matt setzen.} Bb7 {[%emt 0:00:06]} 32. Qd6 {[%emt 0:00:03]} (32. Qe8 $142 Rxf6 33. Bf8 Kg6 34. Rxh6+ (34. Rxb5 Bc6 $18) 34... Kg5 35. Qe7 Kf5 36. Rxf6+ Ke4 37. Rd1 (37. Rxf7 Kd3 $18) (37. Qxf7 c3 38. Rxe6+ Qxe6 39. Qxe6+ Kd3 40. Rd1+ Kc2 41. Qe2+ Kb3 42. Qxb5+ Kc2 43. Qb1#) 37... Qc6 38. Rf4+ (38. Qxf7 e5 39. Qg6+ Kd5 40. dxe5+ Kxe5 41. Qf5#) 38... Kd5 39. Qd8+ Qd7 40. Qxd7#) 32... Qa4 {[%emt 0:00:11]} (32... Qxd6 $18 33. Bxd6 Bd5) 33. Qe7 {[%emt 0:00:12][%csl LRb7,LRf7]} Qc2 {[%emt 0:00:16]} 34. Qxf7+ {[%emt 0:00:14]} Kh8 {[%emt 0:00:00]} 35. Qxb7 {[%emt 0:00:07]} Rxf6 {[%emt 0:00:03]} 36. Rf1 {[%emt 0:00:09][%cal Oc5e7] [#] Weiss droht Be7! und Matt.} ({Minderwertig wäre} 36. Qxa7 Qxf2+ 37. Kh1 Qf3+ 38. Kg1 Qf2+ 39. Kh1 Qf3+ 40. Kg1 Qe3+ (40... Qf2+ 41. Kh1 $11) 41. Kg2 Qe2+ 42. Kg1 Qf2+ $11) 36... Qg6 {[%emt 0:00:02]} 37. Rh4 {[%emt 0:00:03][%cal Oc5d6] Und jetzt Bd6! wäre schön.} Rf7 {[%emt 0:00:03]} 38. Qb8+ {[%emt 0:00:03]} (38. Rxh6+ $142 Qxh6 39. Qxf7 Qh7 40. Qf6+ (40. Qxe6 b4 41. Re1 bxa3 42. Bf8 c3 43. Qf6+ Kg8 44. Bh6 Qxh6 45. Re8+ Qf8 46. Rxf8+ Kh7 47. Rh8#) 40... Qg7 41. Qxe6 Qg8 42. Qxg8+ Kxg8 43. d5 (43. Bxa7 Kf7 44. Re1 c3 45. d5 c2 46. d6 c1=Q 47. Rxc1 Ke6)) 38... Kh7 {[%emt 0:00:00][%cal Bh8h7,Bh7g6,Bg6f5][%mdl 32]} 39. Bd6 {[%emt 0:00:03] Weiß setzt Matt.} c3 {[%emt 0:00:15]} 40. Be5 {[%emt 0:00:02][%csl Ge5][%cal Rb8h8]} Qd3 {[%emt 0:00:11]} 41. Qh8+ {[%emt 0:00:04]} Kg6 {[%emt 0:00:00]} 42. Qxh6+ {[%emt 0:00:03]} Kf5 {[%emt 0:00:01]} 43. Rf4# {[%emt 0:00:02] Gewichteter Fehlerwert: Weiß=1.11/Schwarz=1.66.  Verlustzug:     	---       	Schwarz=3     Gewinn verpasst:   	Weiß=1     	---        Fehler:       	Weiß=7     	Schwarz=6     Ungenau:       	Weiß=1     	Schwarz=2     OK:         	Weiß=3     	Schwarz=3     Bester:       	Weiß=2     	Schwarz=2} 1-0

[Event "Memorial Ukrainian Chess Warriors 2024"]
[Site "Lviv"]
[Date "2024.03.15"]
[Round "7.12"]
[White "Sydoryka, Vladyslav"]
[Black "Karvatskyi, Oleksii"]
[Result "1-0"]
[ECO "D00"]
[WhiteElo "2310"]
[BlackElo "1986"]
[Annotator "TA"]
[PlyCount "59"]
[EventDate "2024.03.06"]
[EventType "swiss"]
[EventCountry "UKR"]
[SourceTitle "playchess.com"]
[Source "ChessBase"]
[SourceQuality "1"]
[TimeControl "600+5"]

{[%evp 9,59,0,-4,-9,12,14,12,-12,-15,-84,-96,-158,-170,-153,-145,-180,-154,-223,-234,-224,-237,-207,-211,-293,-302,-327,-315,-358,-142,-122,-101,-111,-104,-103,-66,-79,-70,-65,-61,-84,-56,-58,-115,-270,-254,-254,-69,-119,-507,-64,513,-141]} 1. d4 d5 2. Nc3 Nf6 3. Bf4 c6 4. e3 Bf5 5. Nf3 e6 6. Ne5 Bb4 7. g4 Bg6 8. h4 {And now h5 would win. The position is equal.} Ne4 9. h5 (9. f3 $11 Nxc3 10. Qd2) 9... Nxc3 $17 (9... Bxc3+ 10. bxc3 Nxc3 11. hxg6 Nxd1 12. Nxf7 $16 (12. gxf7+ Kf8 $16)) 10. bxc3 (10. Qd2 $142 Be4 (10... Nxa2 11. c3 $16) 11. Rh3) 10... Bxc3+ 11. Ke2 Be4 $36 {[%mdl 2048] White is under strong pressure.} 12. f3 Bxa1 13. Qxa1 (13. fxe4 $17 Bc3 14. Qd3) 13... f6 $19 (13... Bxc2 14. Qb2 f6 15. Qxc2 (15. Qxb7 fxe5 16. Qxg7 Rf8 $17) 15... fxe5 16. Bxe5) 14. fxe4 fxe5 15. Bxe5 O-O (15... dxe4 16. Bxg7 Rg8 17. h6 $14) 16. Qe1 Nd7 {Dodges g5} (16... dxe4 17. h6 gxh6 18. Bg2 $17) 17. Bd6 Rf7 18. e5 Qb6 $2 (18... c5 $19 {and Black stays clearly on top.} 19. g5 Qxg5) 19. g5 $17 Qb5+ 20. Kd1 Qb1+ 21. Kd2 Qxa2 22. Bh3 $1 {[%cal Og5g6]} Nb6 {Strongly threatening ...Nc4+.} 23. Bxe6 {[%cal Og5g6]} Nc4+ 24. Kd3 {[#]} Nxd6 $1 25. g6 (25. exd6 Qa3+) 25... Qa6+ 26. Kc3 $2 (26. Kd2 $17 Qa5+ 27. Ke2 Qb5+ 28. Kd2 Nc4+ 29. Kc3) 26... Qa3+ $19 27. Kd2 {[#]} Ne4+ $2 (27... Nc4+ $1 $19 28. Kd1 hxg6 (28... Nxe3+ 29. Ke2 $11) 29. hxg6 Nb2+ (29... Nxe3+ $2 30. Ke2 $18) 30. Kd2 Nc4+ 31. Kd1 Nb2+ (31... Nxe3+ $2 32. Ke2 $18) 32. Kd2 Kf8 (32... Nc4+ 33. Kd1 $11) 33. Bxf7 (33. gxf7 Nc4+ 34. Kd1 Qa1+ 35. Ke2 Qxe1+ 36. Rxe1 Ke7 $16) 33... Nc4+ 34. Kd1 Nxe3+ 35. Ke2 Nf5 (35... Ke7 $2 36. Qh4+ Kd7 37. Qh3+ Kc7 38. Qxe3 $18)) 28. Kd1 (28. Ke2 $15) 28... Qa1+ (28... h6 $17 {[%cal Oc6c5] ...c5! would now be deadly.} 29. Rf1 (29. gxf7+ Kf8 $11) (29. Bxf7+ Kh8 $11) 29... Qb2 (29... Qa1+ 30. Ke2 $11) 30. Bxf7+ (30. Rxf7 Qb1+ 31. Ke2 Qxe1+ 32. Kxe1 Ng5 $17) (30. gxf7+ Kf8 $17) 30... Kh8) 29. Ke2 $15 Qa3 $2 {[%mdl 8192]} (29... Qxe1+ 30. Rxe1 hxg6 31. hxg6 $11) (29... Qa2 $15 {stays ahead.} 30. Bxf7+ (30. gxf7+ Kf8 $11) 30... Kh8) 30. Kd1 $2 {[%mdl 32768] Weighted Error Value: White=0.30/Black=0.44.  Loses game:     	---       	Black=1      Missed win:     	White=1     	Black=2      Mistake:       	White=5     	Black=1      Inaccurate:     	White=1     	Black=2      OK:         	White=5     	Black=9      Best:        	White=4     	Black=4      Strong:       	White=1     	---       . Sensor Board Error (Ke4/e5)?} ({Not} 30. gxf7+ Kf8 $16) (30. Bxf7+ $18 Kf8 31. h6 (31. gxh7 Kxf7 32. Qf1+ Ke7 $11) 31... gxh6 32. Qh4 (32. gxh7 Kxf7 33. Rxh6 Kg7 $19) (32. Rxh6 hxg6 33. Rh8+ Kxf7 $16)) 1-0

[Event "Memorial Ukrainian Chess Warriors 2024"]
[Site "Lviv"]
[Date "2024.03.15"]
[Round "7.13"]
[White "Voitychuk, Orest"]
[Black "Mikhaletz, Lubomir"]
[Result "0-1"]
[ECO "A04"]
[WhiteElo "1953"]
[BlackElo "2278"]
[Annotator "TA"]
[PlyCount "56"]
[EventDate "2024.03.06"]
[EventType "swiss"]
[EventCountry "UKR"]
[SourceTitle "playchess.com"]
[Source "ChessBase"]
[SourceQuality "1"]
[TimeControl "600+5"]

{[%evp 9,56,16,85,68,88,71,73,54,55,50,61,-7,0,0,14,0,10,-15,-11,-18,-18,-18,12,6,51,38,68,-20,-31,0,0,0,0,-4,0,0,0,0,0,0,0,0,0,0,0,0,0,0,0]} 1. Nf3 {[%emt 0:00:03]} d6 {[%emt 0:00:10]} 2. b3 {[%emt 0:00:06]} e5 {[%emt 0:00:02]} 3. d3 {[%emt 0:00:14]} b5 {[%emt 0:00:31]} 4. Bb2 {[%emt 0:00:02]} Bb7 {[%emt 0:00:01]} 5. Nbd2 {[%emt 0:00:02]} g5 {[%emt 0:00:12]} (5... Nf6 $11) 6. e4 {[%emt 0:00:46] Strongly threatening d4.} c5 {[%emt 0:00:37]} 7. h3 {[%emt 0:00:09]} a6 {[%emt 0:00:12]} 8. g3 {[%emt 0:00:21] White is better.} h5 {[%emt 0:00:59][%cal Bh7h5,Bh5h4][%mdl 32]} 9. Bg2 {[%emt 0:00:22]} h4 {[%emt 0:00:47]} 10. g4 {[%emt 0:00:39]} (10. Nf1 $14) 10... Nc6 {[%emt 0:00:27][%cal Bb8c6,Bc6d4,Bd4e6,Be6f4][%mdl 32]} 11. Nf1 {[%emt 0:00:27]} f6 {[%emt 0:01:03]} 12. Ne3 {[%emt 0:00:34]} Nge7 {[%emt 0:00:11]} 13. Ng1 {[%emt 0:00:41]} Nd4 {[%emt 0:00:23]} 14. c3 {[%emt 0:00:48][%cal Bc2c3,Bc3d4][%mdl 32]} Ne6 {[%emt 0:00:19]} 15. d4 {[%emt 0:00:34]} cxd4 {[%emt 0:01:03]} 16. cxd4 {[%emt 0:00:03]} Qb6 {[%emt 0:00:59]} 17. Ne2 {[%emt 0:00:46]} Ng6 {[%emt 0:01:14]} 18. Nf5 {[%emt 0:00:51]} (18. O-O $14) 18... Ngf4 {[%emt 0:00:06]} 19. Nxf4 {[%emt 0:00:03]} Nxf4 {[%emt 0:00:03] The position is equal.} 20. Bf3 {[%emt 0:00:16]} d5 {[%emt 0:00:27]} 21. exd5 {[%emt 0:01:00]} e4 {[%emt 0:00:01]} 22. Bxe4 {[%emt 0:00:16]} Bb4+ {[%emt 0:00:21]} 23. Kf1 {[%emt 0:00:03]} O-O-O {[%emt 0:01:02][%cal Oh8e8]} 24. a3 {[%emt 0:00:08]} Bd6 {[%emt 0:00:02]} 25. Rc1+ {[%emt 0:00:07]} Kb8 {[%emt 0:00:01] Active counter play!} 26. Ne3 {[%emt 0:00:38]} Rhe8 {[%emt 0:00:05]} 27. Bf3 {[%emt 0:00:01]} Rxe3 {[%emt 0:00:20]} 28. fxe3 {[%emt 0:00:02]} Nxd5 {[%emt 0:00:02][%mdl 32768] Weighted Error Value: White=0.15 (very precise) /Black=0.10 (very precise) .  Mistake:       	White=2     	---        Inaccurate:     	---       	Black=3      OK:         	White=9     	Black=8      Best:        	White=1     	Black=2     . Loss on time!?} 0-1

[Event "Memorial Ukrainian Chess Warriors 2024"]
[Site "Lviv"]
[Date "2024.03.15"]
[Round "7.14"]
[White "Piddubna, Bozhena"]
[Black "Masnyak, Yuriy"]
[Result "0-1"]
[ECO "E06"]
[WhiteElo "2132"]
[BlackElo "1785"]
[Annotator "RC"]
[PlyCount "74"]
[EventDate "2024.03.06"]
[EventType "swiss"]
[EventCountry "UKR"]
[SourceTitle "playchess.com"]
[Source "ChessBase"]
[SourceQuality "1"]
[TimeControl "600+5"]

1. d4 {[%emt 0:00:01]} d5 {[%emt 0:00:01]} 2. Nf3 {[%emt 0:00:01]} Nf6 {[%emt 0:00:01]} 3. c4 {[%emt 0:00:01]} e6 {[%emt 0:00:01]} 4. g3 Be7 5. Bg2 {[%emt 0:00:01]} O-O {[%emt 0:00:02]} 6. O-O {[%emt 0:00:02]} c6 {[%emt 0:00:01]} 7. Nc3 {[%emt 0:00:05]} Nbd7 {[%emt 0:00:03]} 8. Nd2 {[%emt 0:00:01]} b6 {[%emt 0:00:02]} 9. e4 {[%emt 0:00:01]} dxe4 {[%emt 0:00:11]} 10. Ndxe4 {[%emt 0:00:02]} Bb7 {[%emt 0:00:02]} 11. Qc2 {[%emt 0:00:16]} Nxe4 {[%emt 0:00:33]} 12. Nxe4 {[%emt 0:00:04]} c5 {[%emt 0:00:33]} 13. dxc5 {[%emt 0:00:28]} bxc5 {[%emt 0:01:09]} 14. Rd1 {[%emt 0:00:12]} Qc7 {[%emt 0:00:23]} 15. Be3 {[%emt 0:02:27]} f5 {[%emt 0:02:40]} 16. Nc3 {[%emt 0:00:02]} Bxg2 {[%emt 0:00:03]} 17. Kxg2 {[%emt 0:00:01]} Qb7+ {[%emt 0:00:06]} 18. f3 {[%emt 0:00:02]} Ne5 {[%emt 0:00:36]} 19. Qe2 Bf6 {[%emt 0:01:10]} 20. Rd2 {[%emt 0:01:05]} g5 21. Kf2 {[%emt 0:04:19]} g4 {[%emt 0:00:40]} 22. f4 {[%emt 0:00:02]} Nf3 {[%emt 0:00:15]} 23. Rd6 {[%emt 0:00:01]} Nd4 {[%emt 0:01:22]} 24. Bxd4 {[%emt 0:02:37]} Bxd4+ {[%emt 0:00:02]} 25. Rxd4 {[%emt 0:00:01]} cxd4 {[%emt 0:00:01]} 26. Nb5 {[%emt 0:00:03]} Qb6 {[%emt 0:00:28]} 27. Qd3 {[%emt 0:00:16]} a6 {[%emt 0:00:02]} 28. Na3 {[%emt 0:00:01]} Qxb2+ {[%emt 0:00:02]} 29. Nc2 {[%emt 0:00:01]} Rfd8 {[%emt 0:00:41]} 30. Re1 {[%emt 0:00:05]} Qb6 {[%emt 0:00:16]} 31. Re5 {[%emt 0:00:14]} Rac8 {[%emt 0:00:13]} 32. Kf1 Qc6 {[%emt 0:00:19]} 33. Nxd4 {[%emt 0:00:10]} Qxc4 {[%emt 0:00:30]} 34. Qxc4 {[%emt 0:00:03]} Rxc4 {[%emt 0:00:01]} 35. Nxe6 {[%emt 0:00:04]} Rd2 {[%emt 0:00:02]} 36. Re2 {[%emt 0:00:06]} Rxe2 {[%emt 0:00:11]} 37. Kxe2 Re4+ 0-1